fUST/lending_fUST_20250910
["ID","MTS","AMOUNT","RATE_DAILY","PERIOD"]
[384492861,1757442650582,-480.0,0.00013972,2]
[384492863,1757442650592,-230.21215721,0.00013972,2]
[384492865,1757442650601,-480.0,0.00013972,2]
[384492867,1757442650611,-964.71,0.00013972,2]
[384492869,1757442650620,-480.0,0.00013972,2]
[384492871,1757442650630,-480.0,0.00013972,2]
[384492873,1757442650639,-587.21,0.00013972,2]
[384492875,1757442650648,-480.0,0.00013972,2]
[384492877,1757442650658,-482.3,0.00013972,2]
[384492879,1757442650667,-480.0,0.00013972,2]
[384492881,1757442650676,-480.0,0.00013972,2]
[384492883,1757442650686,-480.0,0.00013972,2]
[384492885,1757442650695,-480.0,0.00013972,2]
[384492887,1757442650707,-480.0,0.00013972,2]
[384492889,1757442650717,-480.0,0.00013972,2]
[384492891,1757442650727,-662.85,0.00013972,2]
[384492893,1757442650736,-3874.65,0.00013972,2]
[384492895,1757442650746,-151.0,0.00013972,2]
[384492897,1757442650757,-480.0,0.00013972,2]
[384492899,1757442650767,-480.0,0.00013972,2]
[384492901,1757442650776,-227.84848448,0.00013972,2]
[384492903,1757442650787,-480.0,0.00013972,2]
[384492905,1757442650797,-480.0,0.00013972,2]
[384492907,1757442650806,-480.0,0.00013972,2]
[384492909,1757442650815,-480.0,0.00013972,2]
[384492911,1757442650824,-480.0,0.00013972,2]
[384492913,1757442650834,-480.0,0.00013972,2]
[384492915,1757442650843,-2040.55,0.00013972,2]
[384492917,1757442650852,-480.0,0.00013972,2]
[384492919,1757442650862,-480.0,0.00013972,2]
[384492921,1757442650871,-968.54,0.00013972,2]
[384492923,1757442650880,-480.0,0.00013972,2]
[384492925,1757442650890,-3150.99,0.00013972,2]
[384492927,1757442650899,-480.0,0.00013972,2]
[384492929,1757442650908,-480.0,0.00013972,2]
[384492931,1757442650918,-151.0,0.00013972,2]
[384492933,1757442650927,-151.0,0.00013972,2]
[384492935,1757442650936,-867.78,0.00013972,2]
[384492937,1757442650945,-480.0,0.00013972,2]
[384492939,1757442650954,-680.85,0.00013972,2]
[384492941,1757442650963,-2752.01,0.00013972,2]
[384492943,1757442650972,-151.0,0.00013972,2]
[384492945,1757442650981,-151.0,0.00013972,2]
[384492947,1757442650990,-480.0,0.00013972,2]
[384492949,1757442650999,-480.0,0.00013972,2]
[384492951,1757442651008,-480.0,0.00013972,2]
[384492953,1757442651020,-151.0,0.00013972,2]
[384492955,1757442651030,-151.0,0.00013972,2]
[384492957,1757442651039,-480.0,0.00013972,2]
[384492959,1757442651048,-356.66637305,0.00013972,2]
[384492961,1757442651058,-31001.39,0.00013972,2]
[384492963,1757442651068,-151.0,0.00013972,2]
[384492965,1757442651078,-480.0,0.00013972,2]
[384492967,1757442651088,-151.0,0.00013972,2]
[384492969,1757442651097,-480.0,0.00013972,2]
[384492971,1757442651107,-668.87,0.00013972,2]
[384492973,1757442651117,-233.993288,0.00013972,2]
[384492975,1757442651126,-792.73,0.00013972,2]
[384492977,1757442651135,-480.0,0.00013972,2]
[384492978,1757442651144,-155.28,0.00013972,2]
[384492981,1757442651154,-480.0,0.00013972,2]
[384492983,1757442651163,-480.0,0.00013972,2]
[384492984,1757442651173,-480.0,0.00013972,2]
[384492986,1757442651182,-1120.56,0.00013972,2]
[384492988,1757442651191,-480.0,0.00013972,2]
[384492990,1757442651201,-3388.6,0.00013972,2]
[384492992,1757442651211,-480.0,0.00013972,2]
[384492994,1757442651220,-480.0,0.00013972,2]
[384492996,1757442651229,-855.2,0.00013972,2]
[384492998,1757442651239,-566.3,0.00013972,2]
[384493000,1757442651248,-480.0,0.00013972,2]
[384493002,1757442651257,-1578.83,0.00013972,2]
[384493004,1757442651266,-480.0,0.00013972,2]
[384493006,1757442651275,-231.63664,0.00013972,2]
[384493008,1757442651285,-231.63664,0.00013972,2]
[384493010,1757442651294,-746.99,0.00013972,2]
[384493012,1757442651303,-231.63664,0.00013972,2]
[384493014,1757442651312,-231.63664,0.00013972,2]
[384493016,1757442651321,-1169.6,0.00013972,2]
[384493018,1757442651331,-231.63664,0.00013972,2]
[384493020,1757442651340,-231.63664,0.00013972,2]
[384493022,1757442651349,-794.53,0.00013972,2]
[384493024,1757442651359,-231.63664,0.00013972,2]
[384493026,1757442651369,-231.63665,0.00013972,2]
[384493028,1757442651379,-2051.88,0.00013972,2]
[384493030,1757442651388,-480.0,0.00013972,2]
[384493032,1757442651397,-480.0,0.00013972,2]
[384493034,1757442651406,-480.0,0.00013972,2]
[384493036,1757442651416,-1072.51,0.00013972,2]
[384493038,1757442651425,-480.0,0.00013972,2]
[384493040,1757442651434,-846.94,0.00013972,2]
[384493042,1757442651443,-386.7781081,0.00013972,2]
[384493044,1757442651452,-480.0,0.00013972,2]
[384493046,1757442651462,-480.0,0.00013972,2]
[384493048,1757442651471,-2265.8,0.00013972,2]
[384493050,1757442651481,-480.0,0.00013972,2]
[384493052,1757442651490,-1368.71,0.00013972,2]
[384493054,1757442651499,-880.65,0.00013972,2]
[384493056,1757442651508,-480.0,0.00013972,2]
[384493057,1757442651518,-929.09,0.00013972,2]
[384493059,1757442651527,-480.0,0.00013972,2]
[384493061,1757442651536,-480.0,0.00013972,2]
[384493063,1757442651545,-480.0,0.00013972,2]
[384493065,1757442651555,-657.24,0.00013972,2]
[384493067,1757442651564,-480.0,0.00013972,2]
[384493069,1757442651574,-951.87,0.00013972,2]
[384493071,1757442651586,-480.0,0.00013972,2]
[384493073,1757442651595,-480.0,0.00013972,2]
[384493075,1757442651604,-593.59,0.00013972,2]
[384493077,1757442651615,-480.0,0.00013972,2]
[384493079,1757442651624,-480.0,0.00013972,2]
[384493081,1757442651633,-2980.71,0.00013972,2]
[384493084,1757442651643,-1434.94,0.00013972,2]
[384493085,1757442651652,-480.0,0.00013972,2]
[384493087,1757442651661,-723.66,0.00013972,2]
[384493090,1757442651671,-991.18,0.00013972,2]
[384493091,1757442651681,-480.0,0.00013972,2]
[384493093,1757442651690,-480.0,0.00013972,2]
[384493095,1757442651699,-480.0,0.00013972,2]
[384493097,1757442651708,-480.0,0.00013972,2]
[384493100,1757442651718,-480.0,0.00013972,2]
[384493101,1757442651727,-480.0,0.00013972,2]
[384493103,1757442651738,-480.0,0.00013972,2]
[384493105,1757442651747,-2333.59,0.00013972,2]
[384493107,1757442651756,-557.18,0.00013972,2]
[384493109,1757442651765,-818.47,0.00013972,2]
[384493111,1757442651775,-1054.86,0.00013972,2]
[384493113,1757442651784,-499.03880571,0.00013972,2]
[384493115,1757442651793,-480.0,0.00013972,2]
[384493117,1757442651803,-480.0,0.00013972,2]
[384493120,1757442651812,-480.0,0.00013972,2]
[384493121,1757442651823,-480.0,0.00013972,2]
[384493123,1757442651833,-480.0,0.00013972,2]
[384493125,1757442651843,-1786.03,0.00013972,2]
[384493127,1757442651852,-480.0,0.00013972,2]
[384493129,1757442651861,-5185.72,0.00013972,2]
[384493131,1757442651870,-601.53,0.00013972,2]
[384493133,1757442651879,-369.45458263,0.00013972,2]
[384493135,1757442651890,-480.0,0.00013972,2]
[384493137,1757442651899,-480.0,0.00013972,2]
[384493139,1757442651908,-480.0,0.00013972,2]
[384493141,1757442651917,-480.0,0.00013972,2]
[384493143,1757442651926,-9676.48,0.00013972,2]
[384493145,1757442651936,-486.79,0.00013972,2]
[384493147,1757442651946,-480.0,0.00013972,2]
[384493149,1757442651956,-5431.79,0.00013972,2]
[384493151,1757442651965,-1176.66,0.00013972,2]
[384493153,1757442651975,-649.14,0.00013972,2]
[384493155,1757442651985,-570.92,0.00013972,2]
[384493157,1757442651994,-480.0,0.00013972,2]
[384493159,1757442652004,-175.05,0.00013972,2]
[384493161,1757442652014,-4108.95,0.00013972,2]
[384493163,1757442652024,-510.34,0.00013972,2]
[384493164,1757442652037,-2130.61,0.00013972,2]
[384493166,1757442652047,-1343.31,0.00013972,2]
[384493168,1757442652057,-211.714113,0.00013972,2]
[384493170,1757442652067,-211.714113,0.00013972,2]
[384493172,1757442652077,-211.714113,0.00013972,2]
[384493174,1757442652088,-1083.44,0.00013972,2]
[384493176,1757442652097,-211.714115,0.00013972,2]
[384493178,1757442652106,-1061.98,0.00013972,2]
[384493180,1757442652116,-849.19,0.00013972,2]
[384493182,1757442652125,-500.0,0.00013972,2]
[384493184,1757442652135,-500.90463239,0.00013973,2]
[384493186,1757442652144,-636.46717375,0.00013973,2]
[384493188,1757442652153,-305.29473766,0.00013973,2]
[384493190,1757442652162,-500.0,0.00013973,2]
[384493192,1757442652171,-202.0,0.00013976,2]
[384493193,1757442652180,-3000.0,0.00013984,2]
[384493194,1757442652190,-150.049,0.00013986,2]
[384493195,1757442652199,-150.055,0.00013986,2]
[384493196,1757442652208,-2154.0,0.00013986,2]
[384493197,1757442652217,-634.0,0.00013986,2]
[384493198,1757442652226,-326.6,0.00013986,2]
[384493199,1757442652235,-429.6,0.00013986,2]
[384493200,1757442652244,-224.78955316,0.0001399,2]
[384493201,1757442652253,-500.0,0.0001399,2]
[384493202,1757442652262,-500.0,0.0001399,2]
[384493203,1757442652271,-500.0,0.0001399,2]
[384493204,1757442652280,-500.0,0.0001399,2]
[384493205,1757442652289,-500.0,0.0001399,2]
[384493206,1757442652298,-500.0,0.0001399,2]
[384493207,1757442652307,-500.0,0.0001399,2]
[384493208,1757442652316,-500.0,0.0001399,2]
[384493209,1757442652325,-376.0,0.0001399,2]
[384493210,1757442652335,-323.1991578,0.00014,2]
[384493211,1757442652344,-590.6710272,0.00014,2]
[384493213,1757442652354,-656.6692083,0.00014,2]
[384493215,1757442652364,-398.0,0.00014016,2]
[384493217,1757442652374,-168.0,0.00014072,2]
[384493219,1757442652383,-168.0,0.00014132,2]
[384493221,1757442652393,-398.0,0.00014136,2]
[384493223,1757442652402,-202.0,0.00014167,2]
[384493225,1757442652413,-168.0,0.00014183,2]
[384493227,1757442652427,-8731.93907255,0.00014238,2]
[384493229,1757442652439,-244.0,0.00014246,2]
[384493231,1757442652448,-206.67670021,0.00014246,2]
[384493234,1757442652461,-742.0,0.00014246,2]
[384493236,1757442652470,-500.0,0.00014246,2]
[384493238,1757442652480,-157.0,0.00014246,2]
[384493240,1757442652489,-177.82478668,0.00014246,2]
[384493242,1757442652499,-174.0,0.00014246,2]
[384493244,1757442652508,-253.60309628,0.00014246,2]
[384493246,1757442652517,-157.0,0.00014246,2]
[384493248,1757442652526,-480.0,0.00014246,2]
[384493250,1757442652536,-480.0,0.00014246,2]
[384493252,1757442652545,-480.0,0.00014246,2]
[384493254,1757442652554,-480.0,0.00014246,2]
[384493256,1757442652563,-480.0,0.00014246,2]
[384493258,1757442652573,-480.0,0.00014246,2]
[384493272,1757442652582,-480.0,0.00014246,2]
[384493274,1757442652718,-726.09,0.00014246,2]
[384493276,1757442652727,-447.53,0.00014246,2]
[384493278,1757442652736,-480.0,0.00014246,2]
[384493280,1757442652747,-491.44,0.00014246,2]
[384493282,1757442652756,-480.0,0.00014246,2]
[384493284,1757442652766,-480.0,0.00014246,2]
[384493286,1757442652778,-467.25021271,0.00014246,2]
[384493288,1757442652794,-480.0,0.00014246,2]
[384493289,1757442652803,-480.0,0.00014246,2]
[384493291,1757442652812,-480.0,0.00014246,2]
[384493293,1757442652823,-379.42,0.00014246,2]
[384493295,1757442652832,-941.74,0.00014246,2]
[384493298,1757442652844,-480.0,0.00014246,2]
[384493299,1757442652854,-590.26,0.00014246,2]
[384493301,1757442652864,-971.65,0.00014246,2]
[384493303,1757442652873,-480.0,0.00014246,2]
[384493305,1757442652882,-480.0,0.00014246,2]
[384493307,1757442652892,-480.0,0.00014246,2]
[384493309,1757442652902,-480.0,0.00014246,2]
[384493311,1757442652912,-480.0,0.00014246,2]
[384493313,1757442652921,-480.0,0.00014246,2]
[384493315,1757442652930,-480.0,0.00014246,2]
[384493317,1757442652939,-480.0,0.00014246,2]
[384493319,1757442652948,-826.54,0.00014246,2]
[384493321,1757442652958,-1428.78,0.00014246,2]
[384493323,1757442652967,-845.53,0.00014246,2]
[384493325,1757442652976,-480.0,0.00014246,2]
[384493327,1757442652985,-582.24,0.00014246,2]
[384493329,1757442652995,-587.66,0.00014246,2]
[384493331,1757442653005,-480.0,0.00014246,2]
[384493333,1757442653015,-480.0,0.00014246,2]
[384493335,1757442653024,-797.52,0.00014246,2]
[384493337,1757442653033,-480.0,0.00014246,2]
[384493339,1757442653042,-480.0,0.00014246,2]
[384493341,1757442653051,-480.0,0.00014246,2]
[384493343,1757442653060,-480.0,0.00014246,2]
[384493345,1757442653070,-480.0,0.00014246,2]
[384493347,1757442653079,-480.0,0.00014246,2]
[384493349,1757442653089,-480.0,0.00014246,2]
[384493351,1757442653099,-2146.51,0.00014246,2]
[384493353,1757442653109,-656.04,0.00014246,2]
[384493355,1757442653118,-480.0,0.00014246,2]
[384493357,1757442653127,-697.53,0.00014246,2]
[384493359,1757442653138,-536.27,0.00014246,2]
[384493361,1757442653147,-480.0,0.00014246,2]
[384493363,1757442653157,-480.0,0.00014246,2]
[384493365,1757442653166,-480.0,0.00014246,2]
[384493366,1757442653175,-577.9,0.00014246,2]
[384493368,1757442653184,-727.31,0.00014246,2]
[384493370,1757442653194,-480.0,0.00014246,2]
[384493372,1757442653203,-480.0,0.00014246,2]
[384493373,1757442653211,-480.0,0.00014246,2]
[384493374,1757442653222,-480.0,0.00014246,2]
[384493376,1757442653232,-480.0,0.00014246,2]
[384493378,1757442653242,-567.2,0.00014246,2]
[384493379,1757442653251,-269.98522242,0.00014246,2]
[384493380,1757442653261,-480.0,0.00014246,2]
[384493382,1757442653270,-480.0,0.00014246,2]
[384493384,1757442653280,-480.0,0.00014246,2]
[384493385,1757442653289,-480.0,0.00014246,2]
[384493387,1757442653299,-354.86525612,0.00014246,2]
[384493388,1757442653308,-480.0,0.00014246,2]
[384493390,1757442653318,-964.71,0.00014246,2]
[384493391,1757442653327,-309.16,0.00014246,2]
[384493393,1757442653336,-480.0,0.00014246,2]
[384493394,1757442653346,-587.21,0.00014246,2]
[384493396,1757442653355,-480.0,0.00014246,2]
[384493397,1757442653365,-480.0,0.00014246,2]
[384493399,1757442653374,-480.0,0.00014246,2]
[384493400,1757442653383,-480.0,0.00014246,2]
[384493402,1757442653392,-480.0,0.00014246,2]
[384493403,1757442653401,-480.0,0.00014246,2]
[384493405,1757442653411,-662.85,0.00014246,2]
[384493406,1757442653420,-3874.65,0.00014246,2]
[384493408,1757442653430,-480.0,0.00014246,2]
[384493409,1757442653439,-480.0,0.00014246,2]
[384493411,1757442653448,-480.0,0.00014246,2]
[384493412,1757442653457,-480.0,0.00014246,2]
[384493414,1757442653467,-480.0,0.00014246,2]
[384493416,1757442653477,-480.0,0.00014246,2]
[384493417,1757442653486,-480.0,0.00014246,2]
[384493418,1757442653495,-2040.55,0.00014246,2]
[384493420,1757442653504,-480.0,0.00014246,2]
[384493422,1757442653514,-480.0,0.00014246,2]
[384493423,1757442653523,-968.54,0.00014246,2]
[384493425,1757442653532,-324.62794953,0.00014246,2]
[384493426,1757442653542,-3150.99,0.00014246,2]
[384493428,1757442653551,-480.0,0.00014246,2]
[384493429,1757442653560,-480.0,0.00014246,2]
[384493431,1757442653569,-867.78,0.00014246,2]
[384493432,1757442653579,-680.85,0.00014246,2]
[384493434,1757442653588,-480.0,0.00014246,2]
[384493435,1757442653598,-2752.01,0.00014246,2]
[384493437,1757442653608,-480.0,0.00014246,2]
[384493439,1757442653618,-480.0,0.00014246,2]
[384493440,1757442653628,-480.0,0.00014246,2]
[384493442,1757442653637,-480.0,0.00014246,2]
[384493443,1757442653647,-31001.39,0.00014246,2]
[384493445,1757442653656,-480.0,0.00014246,2]
[384493447,1757442653665,-480.0,0.00014246,2]
[384493448,1757442653674,-668.87,0.00014246,2]
[384493450,1757442653683,-792.73,0.00014246,2]
[384493451,1757442653693,-480.0,0.00014246,2]
[384493453,1757442653702,-480.0,0.00014246,2]
[384493455,1757442653712,-370.90873785,0.00014246,2]
[384493456,1757442653721,-480.0,0.00014246,2]
[384493458,1757442653730,-1120.56,0.00014246,2]
[384493459,1757442653739,-480.0,0.00014246,2]
[384493461,1757442653749,-3388.6,0.00014246,2]
[384493463,1757442653758,-480.0,0.00014246,2]
[384493464,1757442653768,-855.2,0.00014246,2]
[384493466,1757442653777,-566.3,0.00014246,2]
[384493467,1757442653786,-480.0,0.00014246,2]
[384493469,1757442653796,-1578.83,0.00014246,2]
[384493471,1757442653805,-159.94285149,0.00014246,2]
[384493472,1757442653814,-746.99,0.00014246,2]
[384493474,1757442653823,-1169.6,0.00014246,2]
[384493476,1757442653832,-794.53,0.00014246,2]
[384493477,1757442653842,-2051.88,0.00014246,2]
[384493479,1757442653853,-480.0,0.00014246,2]
[384493480,1757442653862,-1072.51,0.00014246,2]
[384493482,1757442653872,-480.0,0.00014246,2]
[384493484,1757442653882,-846.94,0.00014246,2]
[384493485,1757442653891,-480.0,0.00014246,2]
[384493487,1757442653901,-480.0,0.00014246,2]
[384493489,1757442653910,-2265.8,0.00014246,2]
[384493490,1757442653919,-480.0,0.00014246,2]
[384493492,1757442653929,-880.65,0.00014246,2]
[384493494,1757442653938,-1368.71,0.00014246,2]
[384493495,1757442653947,-480.0,0.00014246,2]
[384493497,1757442653956,-929.09,0.00014246,2]
[384493498,1757442653966,-480.0,0.00014246,2]
[384493500,1757442653975,-530.53700526,0.00014246,2]
[384493502,1757442653984,-657.24,0.00014246,2]
[384493503,1757442653993,-480.0,0.00014246,2]
[384493505,1757442654003,-951.87,0.00014246,2]
[384493507,1757442654012,-480.0,0.00014246,2]
[384493508,1757442654022,-593.59,0.00014246,2]
[384493510,1757442654031,-480.0,0.00014246,2]
[384493512,1757442654041,-480.0,0.00014246,2]
[384493513,1757442654051,-2980.71,0.00014246,2]
[384493515,1757442654060,-1434.94,0.00014246,2]
[384493516,1757442654069,-480.0,0.00014246,2]
[384493518,1757442654079,-723.66,0.00014246,2]
[384493520,1757442654089,-991.18,0.00014246,2]
[384493521,1757442654100,-480.0,0.00014246,2]
[384493523,1757442654109,-480.0,0.00014246,2]
[384493525,1757442654119,-480.0,0.00014246,2]
[384493526,1757442654129,-204.92868896,0.00014246,2]
[384493528,1757442654139,-2333.59,0.00014246,2]
[384493530,1757442654150,-557.18,0.00014246,2]
[384493531,1757442654159,-818.47,0.00014246,2]
[384493533,1757442654169,-1054.86,0.00014246,2]
[384493535,1757442654179,-480.0,0.00014246,2]
[384493536,1757442654188,-480.0,0.00014246,2]
[384493538,1757442654197,-480.0,0.00014246,2]
[384493540,1757442654207,-480.0,0.00014246,2]
[384493541,1757442654216,-480.0,0.00014246,2]
[384493543,1757442654225,-1786.03,0.00014246,2]
[384493544,1757442654234,-480.0,0.00014246,2]
[384493546,1757442654243,-5185.72,0.00014246,2]
[384493548,1757442654253,-601.53,0.00014246,2]
[384493549,1757442654262,-480.0,0.00014246,2]
[384493551,1757442654271,-480.0,0.00014246,2]
[384493552,1757442654280,-556.17047711,0.00014246,2]
[384493554,1757442654290,-9676.48,0.00014246,2]
[384493556,1757442654299,-486.79,0.00014246,2]
[384493557,1757442654308,-5431.79,0.00014246,2]
[384493559,1757442654317,-1176.66,0.00014246,2]
[384493561,1757442654327,-649.14,0.00014246,2]
[384493562,1757442654336,-4108.95,0.00014246,2]
[384493564,1757442654345,-510.34,0.00014246,2]
[384493565,1757442654355,-2130.61,0.00014246,2]
[384493567,1757442654365,-1343.31,0.00014246,2]
[384493569,1757442654375,-1083.44,0.00014246,2]
[384493570,1757442654385,-1061.98,0.00014246,2]
[384493572,1757442654394,-849.19,0.00014246,2]
[384493574,1757442654404,-500.0,0.00014246,2]
[384493575,1757442654413,-500.0,0.00014273,2]
[384493577,1757442654423,-500.0,0.00014273,2]
[384493578,1757442654432,-500.0,0.00014273,2]
[384493580,1757442654441,-500.0,0.00014273,2]
[384493582,1757442654452,-500.0,0.00014273,2]
[384493584,1757442654461,-500.0,0.00014273,2]
[384493586,1757442654472,-500.0,0.00014273,2]
[384493588,1757442654481,-500.0,0.00014273,2]
[384493590,1757442654490,-500.0,0.00014273,2]
[384493592,1757442654500,-398.0,0.00014275,2]
[384493594,1757442654509,-168.0,0.00014342,2]
[384493596,1757442654519,-168.0,0.00014376,2]
[384493597,1757442654528,-151.0,0.000144,2]
[384493598,1757442654537,-151.0,0.000144,2]
[384493599,1757442654547,-151.0,0.000144,2]
[384493600,1757442654556,-388.8368805,0.00014413,2]
[384493601,1757442654566,-388.8368805,0.00014413,2]
[384493602,1757442654575,-388.8368805,0.00014413,2]
[384493603,1757442654584,-388.8368805,0.00014413,2]
[384493604,1757442654594,-1000.0,0.00014421,2]
[384493605,1757442654603,-1000.0,0.00014421,2]
[384493606,1757442654613,-1000.0,0.00014421,2]
[384493607,1757442654622,-1000.0,0.00014421,2]
[384493608,1757442654631,-1000.0,0.00014421,2]
[384493609,1757442654640,-500.0,0.0001445,2]
[384493610,1757442654649,-2000.0,0.000145,2]
[384493611,1757442654659,-133631.35010553,0.000145,2]
[384494241,1757442766641,8723.36246431,0.00013598,2]
[384494242,1757442782383,300.0,0.00013597,2]
[384494243,1757442796014,6116.3930689,0.00012758,2]
[384494306,1757443230849,23082.58524047,2.4e-05,30]
[384494440,1757443832599,-339.84189056,0.00013287,2]
[384494442,1757443832609,-336.25546948,0.00013597,2]
[384494444,1757443832619,-300.0,0.00013597,2]
[384494446,1757443832627,-155.26899005,0.00013598,2]
[384494448,1757443832637,-400.74073414,0.00013598,2]
[384494451,1757443832648,-13768.00481215,0.00013598,2]
[384494452,1757443832657,-500.0,0.00013697,2]
[384494454,1757443832667,-500.0,0.00013697,2]
[384494456,1757443832676,-500.0,0.00013697,2]
[384494458,1757443832686,-500.0,0.00013697,2]
[384494460,1757443832695,-476.13118096,0.00013697,2]
[384494462,1757443832704,-500.0,0.00013697,2]
[384494464,1757443832713,-500.0,0.00013697,2]
[384494466,1757443832722,-405.60932099,0.00013697,2]
[384494468,1757443832732,-500.0,0.00013697,2]
[384494470,1757443832740,-500.0,0.00013697,2]
[384494472,1757443832750,-500.0,0.00013697,2]
[384494474,1757443832759,-500.0,0.00013697,2]
[384494476,1757443832769,-500.0,0.00013697,2]
[384494478,1757443832778,-500.0,0.00013697,2]
[384494480,1757443832788,-272.53556819,0.00013697,2]
[384494482,1757443832797,-500.0,0.00013697,2]
[384494484,1757443832806,-500.0,0.00013697,2]
[384494486,1757443832816,-500.0,0.00013697,2]
[384494488,1757443832825,-174.92860712,0.00013697,2]
[384494490,1757443832835,-500.0,0.00013697,2]
[384494492,1757443832845,-500.0,0.00013697,2]
[384494494,1757443832854,-500.0,0.00013697,2]
[384494496,1757443832863,-500.0,0.00013697,2]
[384494498,1757443832873,-500.0,0.00013697,2]
[384494500,1757443832883,-500.0,0.00013697,2]
[384494503,1757443832893,-500.0,0.00013697,2]
[384494505,1757443832903,-500.0,0.00013697,2]
[384494507,1757443832913,-500.0,0.00013697,2]
[384494509,1757443832923,-500.0,0.00013697,2]
[384494511,1757443832933,-500.0,0.00013697,2]
[384494513,1757443832942,-500.0,0.00013697,2]
[384494515,1757443832951,-500.0,0.00013697,2]
[384494517,1757443832960,-500.0,0.00013697,2]
[384494519,1757443832970,-500.0,0.00013697,2]
[384494521,1757443832979,-500.0,0.00013697,2]
[384494522,1757443832988,-500.0,0.00013697,2]
[384494525,1757443832998,-500.0,0.00013697,2]
[384494527,1757443833007,-500.0,0.00013697,2]
[384494529,1757443833017,-500.0,0.00013697,2]
[384494531,1757443833026,-500.0,0.00013697,2]
[384494533,1757443833035,-500.0,0.00013697,2]
[384494535,1757443833044,-500.0,0.00013697,2]
[384494537,1757443833054,-500.0,0.00013697,2]
[384494539,1757443833063,-500.0,0.00013697,2]
[384494540,1757443833072,-500.0,0.00013697,2]
[384494543,1757443833082,-500.0,0.00013697,2]
[384494545,1757443833092,-500.0,0.00013697,2]
[384494547,1757443833101,-500.0,0.00013697,2]
[384494549,1757443833110,-500.0,0.00013697,2]
[384494551,1757443833119,-486.39748325,0.00013697,2]
[384494552,1757443833128,-500.0,0.00013697,2]
[384494554,1757443833137,-500.0,0.00013697,2]
[384494556,1757443833147,-500.0,0.00013697,2]
[384494558,1757443833157,-500.0,0.00013697,2]
[384494560,1757443833166,-500.0,0.00013697,2]
[384494563,1757443833176,-500.0,0.00013697,2]
[384494565,1757443833186,-243.23363,0.00013697,2]
[384494567,1757443833195,-499.99999999,0.00013697,2]
[384494569,1757443833204,-499.99999999,0.00013697,2]
[384494571,1757443833214,-193.69262555,0.00013697,2]
[384494573,1757443833223,-174.01263798,0.00013697,2]
[384494575,1757443833233,-328.81606635,0.00013697,2]
[384494577,1757443833242,-200.89850826,0.00013698,2]
[384494579,1757443833251,-432.4855129,0.00013698,2]
[384494581,1757443833261,-480.0,0.00013698,2]
[384494583,1757443833272,-480.0,0.00013698,2]
[384494585,1757443833282,-480.0,0.00013698,2]
[384494587,1757443833292,-480.0,0.00013698,2]
[384494589,1757443833301,-480.0,0.00013698,2]
[384494591,1757443833311,-480.0,0.00013698,2]
[384494593,1757443833320,-604.58552623,0.00013698,2]
[384494595,1757443833329,-480.0,0.00013698,2]
[384494597,1757443833339,-480.0,0.00013698,2]
[384494599,1757443833348,-480.0,0.00013698,2]